fUSD/lending_fUSD_20260414
["ID","MTS","AMOUNT","RATE_DAILY","PERIOD"]
[420469643,1776118246972,-658.03402278,0.00014262,2]
[420469645,1776118671418,150.0,0.00013905,30]
[420469646,1776118718026,157.42,6.103e-05,2]
[420469647,1776118718219,157.42,6.975e-05,2]
[420469648,1776118718437,41.96882657,7.847e-05,2]
[420469649,1776118718466,115.45117343,7.847e-05,2]
[420469650,1776118718650,157.42,8.719e-05,2]
[420469651,1776118719080,157.42,9.59e-05,2]
[420469652,1776118719245,157.42,0.00010462,2]
[420469654,1776119036302,8346.03626207,0.0001,2]
[420469659,1776119431875,-306.0,0.00010759,2]
[420469661,1776119431889,-138.0,0.00010759,2]
[420469663,1776119431905,-2170.87133791,0.00010759,2]
[420469665,1776119431915,-152.0,0.00010761,2]
[420469668,1776119431933,-250.0,0.00010767,2]
[420469670,1776119431944,-500.0,0.00010773,2]
[420469672,1776119431954,-587.12578581,0.00010799,2]
[420469674,1776119431965,-179.62420292,0.0001081,2]
[420469675,1776119431977,-302.0146931,0.00010842,2]
[420469677,1776119431988,-1200.0,0.00010998,2]
[420469679,1776119431998,-466.0544,0.00010999,2]
[420469681,1776119432007,-160.71521196,0.00010999,2]
[420469683,1776119432024,-160.71521196,0.00011081,2]
[420469685,1776119432037,-157.42,0.00011334,2]
[420469687,1776119432047,-157.79696957,0.0001148,2]
[420469689,1776119432070,-142.20303043,0.0001148,2]
[420469691,1776119432081,-300.0,0.0001148,2]
[420469692,1776119432099,-650.10928957,0.00011482,2]
[420469693,1776119432117,-600.17935112,0.00011482,2]
[420469694,1776119432127,-500.0,0.00011726,2]
[420469695,1776119432137,-200.0,0.000118,2]
[420469696,1776119432153,-775.59922344,0.00011829,2]
[420469697,1776119432163,-195.0,0.00011835,2]
[420469698,1776119432173,-330.34925995,0.00011835,2]
[420469699,1776119432186,-600.0,0.00011837,2]
[420469700,1776119432201,-600.0,0.00011837,2]
[420469701,1776119432211,-600.0,0.00011837,2]
[420469703,1776119432221,-600.0,0.00011837,2]
[420469705,1776119432239,-699.0,0.00011837,2]
[420469706,1776119432249,-250.0,0.00011837,2]
[420469708,1776119432259,-195.0,0.00011837,2]
[420469710,1776119432270,-195.0,0.00011837,2]
[420469712,1776119432287,-16714.76,0.00011853,2]
[420469714,1776119432298,-1852.42,0.00011923,2]
[420469716,1776119432311,-150.0,0.00011959,2]
[420469718,1776119432322,-1274.27720533,0.00012098,2]
[420469720,1776119432340,-405.72279467,0.00012098,2]
[420469722,1776119432353,-150.0,0.000122,2]
[420469724,1776119432371,-157.42,0.00012206,2]
[420469727,1776119432386,-500.0,0.00012215,2]
[420469730,1776119432396,-500.0,0.00012215,2]
[420469732,1776119432416,-151.0,0.00012215,2]
[420469734,1776119432429,-196.18993499,0.00012215,2]
[420469735,1776119432444,-303.81006501,0.00012215,2]
[420469736,1776119432478,-27.27766649,0.00012215,2]
[420469737,1776119432721,-123.72233351,0.00012215,2]
[420469738,1776119432731,-500.0,0.00012215,2]
[420469739,1776119432750,-151.0,0.00012215,2]
[420469740,1776119432768,-500.0,0.00012215,2]
[420469741,1776119432777,-151.0,0.00012215,2]
[420469742,1776119432791,-500.0,0.00012215,2]
[420469743,1776119432810,-151.0,0.00012215,2]
[420469744,1776119432834,-500.0,0.00012215,2]
[420469745,1776119432844,-151.0,0.00012215,2]
[420469746,1776119432858,-500.0,0.00012215,2]
[420469747,1776119432874,-151.0,0.00012215,2]
[420469748,1776119432884,-500.0,0.00012215,2]
[420469749,1776119432898,-151.0,0.00012215,2]
[420469750,1776119432928,-500.0,0.00012215,2]
[420469751,1776119432937,-151.0,0.00012215,2]
[420469752,1776119432954,-500.0,0.00012215,2]
[420469753,1776119432973,-151.0,0.00012215,2]
[420469754,1776119432983,-500.0,0.00012215,2]
[420469755,1776119433013,-151.0,0.00012215,2]
[420469756,1776119433024,-500.0,0.00012215,2]
[420469757,1776119433040,-500.0,0.00012215,2]
[420469758,1776119433064,-500.0,0.00012215,2]
[420469759,1776119433078,-1386.78395259,0.00012215,2]
[420469760,1776119433092,-151.0,0.00012215,2]
[420469761,1776119433123,-1656.43395167,0.00012218,2]
[420469762,1776119433134,-10067.29,0.00012222,2]
[420469763,1776119433154,-2000.0,0.00012233,2]
[420469764,1776119433168,-155.39,0.00012234,2]
[420469765,1776119433195,-200.0,0.0001224,2]
[420469766,1776119433206,-501.0,0.00012247,2]
[420469767,1776119433217,-1051.89,0.000124,2]
[420469768,1776119433230,-500.0,0.00012488,2]
[420469769,1776119433261,-179.62420292,0.00012606,2]
[420469770,1776119433271,-3093.86173907,0.00012675,2]
[420469771,1776119433286,-810.54,0.00012698,2]
[420469772,1776119433301,-578.20924308,0.00012706,2]
[420469773,1776119433316,-6888.0,0.00012706,2]
[420469774,1776119433336,-200.0,0.00012706,2]
[420469775,1776119433355,-1428.38747117,0.00012706,2]
[420469776,1776119433385,-209.40437684,0.00012706,2]
[420469777,1776119433405,-268.9275712,0.00012706,2]
[420469778,1776119433463,-231.0724288,0.00012706,2]
[420469779,1776119433475,-721.12765535,0.00012706,2]
[420469780,1776119433492,-151.0,0.00012706,2]
[420469781,1776119433510,-167.09443384,0.00012706,2]
[420469782,1776119433537,-500.0,0.00012706,2]
[420469783,1776119433548,-500.0,0.00012706,2]
[420469784,1776119433570,-500.0,0.00012706,2]
[420469785,1776119433582,-209.40437684,0.00012706,2]
[420469786,1776119433594,-500.0,0.00012706,2]
[420469787,1776119433617,-500.0,0.00012706,2]
[420469788,1776119433633,-500.0,0.00012706,2]
[420469789,1776119433647,-500.0,0.00012706,2]
[420469790,1776119433671,-500.0,0.00012706,2]
[420469791,1776119433681,-500.0,0.00012706,2]
[420469792,1776119433712,-500.0,0.00012706,2]
[420469793,1776119433746,-500.0,0.00012706,2]
[420469794,1776119433759,-174.61919141,0.00012706,2]
[420469795,1776119433780,-500.0,0.00012761,2]
[420469796,1776119433803,-151.0,0.00012761,2]
[420469797,1776119433827,-179.94212262,0.00012761,2]
[420469798,1776119433874,-1918.8445,0.00012793,2]
[420469799,1776119433890,-4153.9209,0.00012793,2]
[420469800,1776119433968,-500.0,0.00012816,2]
[420469801,1776119433980,-151.0,0.00012816,2]
[420469802,1776119434030,-500.0,0.00012871,2]
[420469803,1776119434044,-151.0,0.00012871,2]
[420469804,1776119434073,-7440.92,0.00012893,2]
[420469805,1776119434098,-5191.38,0.00012893,2]
[420469806,1776119434108,-999.99,0.00012893,2]
[420469807,1776119434118,-150.99,0.00012893,2]
[420469808,1776119434129,-299.99,0.00012893,2]
[420469809,1776119434156,-9999.99,0.00012893,2]
[420469810,1776119434166,-500.0,0.00012926,2]
[420469811,1776119434187,-151.0,0.00012926,2]
[420469812,1776119434202,-810.54,0.00012972,2]
[420469813,1776119434213,-500.0,0.00012981,2]
[420469814,1776119434242,-151.0,0.00012981,2]
[420469815,1776119434251,-250.0,0.00013,2]
[420469816,1776119434262,-500.0,0.00013036,2]
[420469817,1776119434286,-151.0,0.00013036,2]
[420469818,1776119434309,-255.0,0.00013036,2]
[420469819,1776119434320,-500.0,0.00013091,2]
[420469820,1776119434330,-151.0,0.00013091,2]
[420469821,1776119434351,-500.0,0.00013146,2]
[420469822,1776119434364,-151.0,0.00013146,2]
[420469823,1776119434374,-500.0,0.00013201,2]
[420469824,1776119434397,-151.0,0.00013201,2]
[420469825,1776119434410,-810.54,0.00013246,2]
[420469826,1776119434426,-200.0,0.00013254,2]
[420469827,1776119434441,-1481.23780761,0.00013254,2]
[420469828,1776119434452,-217.15233878,0.00013254,2]
[420469829,1776119434470,-217.15233878,0.00013254,2]
[420469830,1776119434493,-181.08010149,0.00013254,2]
[420469831,1776119434503,-500.0,0.00013256,2]
[420469832,1776119434519,-151.0,0.00013256,2]
[420469833,1776119434540,-1000.0,0.000133,2]
[420469834,1776119434550,-2351.0,0.00013307,2]
[420469835,1776119434576,-477.72,0.00013359,2]
[420469836,1776119434589,-477.72,0.00013359,2]
[420469837,1776119434612,-477.72,0.00013359,2]
[420469838,1776119434623,-477.72,0.00013359,2]
[420469839,1776119434633,-3240.0,0.00013425,2]
[420469840,1776119434655,-155.39,0.00013457,2]
[420469841,1776119434667,-189.8143,0.000135,2]
[420469842,1776119434678,-507.0,0.000135,2]
[420469843,1776119434697,-810.54,0.0001352,2]
[420469844,1776119434706,-200.0,0.000136,4]
[420469845,1776119434717,-8618.0,0.00013699,2]
[420469846,1776119434739,-200.0,0.00013699,2]
[420469847,1776119434749,-166.66,0.00013699,2]
[420469848,1776119434758,-9999.99,0.00013699,2]
[420469849,1776119434777,-230.39,0.00013699,2]
[420469850,1776119434789,-986.6,0.00013699,2]
[420469851,1776119434799,-400.0,0.000137,5]
[420469852,1776119434817,-250.0,0.00013734,2]
[420469853,1776119434830,-150.0,0.00013759,2]
[420469854,1776119434849,-150.0,0.00013759,2]
[420469855,1776119434862,-150.0,0.00013759,2]
[420469856,1776119434872,-150.0,0.00013759,2]
[420469857,1776119434889,-150.0,0.00013759,2]
[420469858,1776119434901,-150.0,0.00013759,2]
[420469859,1776119434911,-150.23051104,0.00013759,2]
[420469860,1776119434923,-150.0,0.00013759,2]
[420469861,1776119434942,-150.0,0.00013759,2]
[420469862,1776119434952,-150.32300286,0.00013759,2]
[420469863,1776119434965,-150.0,0.00013759,2]
[420469864,1776119434987,-150.0,0.00013759,2]
[420469865,1776119434998,-2000.0,0.00013763,2]
[420469866,1776119435011,-810.54,0.00013794,2]
[420469867,1776119435036,-600.0,0.000138,5]
[420469868,1776119435047,-200.0,0.00013802,2]
[420469869,1776119435072,-1536.04360649,0.00013802,2]
[420469870,1776119435083,-225.18697532,0.00013802,2]
[420469871,1776119435093,-225.18697532,0.00013802,2]
[420469872,1776119435109,-187.78006525,0.00013802,2]
[420469873,1776119435132,-166.66,0.00013836,2]
[420469874,1776119435141,-14934.6162744,0.0001387,2]
[420469875,1776119435162,-381.327198,0.00013879,2]
[420469876,1776119435173,-254.316132,0.00013879,2]
[420469877,1776119435182,-800.0,0.000139,5]
[420469878,1776119435197,-2500.0,0.00013918,2]
[420469879,1776119435209,-19229.75761564,0.00013962,2]
[420469880,1776119435223,-20636.92798436,0.00013962,2]
[420469881,1776119435236,-166.66,0.00013973,2]
[420469882,1776119435249,-986.6,0.00013973,2]
[420469883,1776119435261,-14934.61627435,0.00014018,2]
[420469884,1776119435279,-24573.29803282,0.00014062,2]
[420469885,1776119435295,-8484.09306718,0.00014062,2]
[420469886,1776119435315,-1000.0,0.00014062,2]
[420469887,1776119435336,-5000.0,0.00014062,2]
[420469888,1776119435346,-153.46100311,0.00014065,2]
[420469889,1776119435372,-654.00735508,0.00014065,2]
[420469890,1776119435410,-2363.30639703,0.00014065,2]
[420469891,1776119435425,-810.58,0.00014068,2]
[420469892,1776119435445,-166.66,0.0001411,2]
[420469893,1776119435457,-211.41547703,0.00014152,2]
[420469894,1776119435484,-500.0,0.00014161,2]
[420469895,1776119435503,-576.01722934,0.00014161,2]
[420469896,1776119435519,-500.0,0.00014161,2]
[420469897,1776119435535,-500.0,0.00014161,2]
[420469898,1776119435546,-302.07605247,0.00014161,2]
[420469899,1776119435567,-500.0,0.00014161,2]
[420469900,1776119435582,-500.0,0.00014161,2]
[420469901,1776119435592,-363.76404188,0.00014161,2]
[420469902,1776119435610,-236.66110067,0.00014161,2]
[420469903,1776119435638,-165.66277046,0.00014161,2]
[420469904,1776119435652,-666.0,0.00014161,2]
[420469905,1776119435665,-500.0,0.00014161,2]
[420469906,1776119435681,-500.0,0.00014161,2]
[420469907,1776119435696,-500.0,0.00014161,2]
[420469908,1776119435711,-500.0,0.00014161,2]
[420469909,1776119435728,-500.0,0.00014161,2]
[420469910,1776119435742,-500.0,0.00014161,2]
[420469911,1776119435753,-500.0,0.00014161,2]
[420469912,1776119435771,-500.0,0.00014161,2]
[420469913,1776119435782,-500.0,0.00014161,2]
[420469914,1776119435801,-500.0,0.00014161,2]
[420469915,1776119435816,-500.0,0.00014161,2]
[420469916,1776119435826,-500.0,0.00014161,2]
[420469917,1776119435850,-500.0,0.00014161,2]
[420469918,1776119435861,-500.0,0.00014161,2]
[420469919,1776119435880,-271.65524399,0.00014161,2]
[420469920,1776119435894,-500.0,0.00014161,2]
[420469921,1776119435908,-500.0,0.00014161,2]
[420469922,1776119435920,-500.0,0.00014161,2]
[420469923,1776119435941,-183.58723642,0.00014161,2]
[420469924,1776119435952,-500.0,0.00014161,2]
[420469925,1776119435966,-500.0,0.00014161,2]
[420469926,1776119435996,-500.0,0.00014161,2]
[420469927,1776119436007,-500.0,0.00014161,2]
[420469928,1776119436018,-500.0,0.00014161,2]
[420469929,1776119436043,-500.0,0.00014161,2]
[420469930,1776119436058,-500.0,0.00014161,2]
[420469931,1776119436089,-500.0,0.00014161,2]
[420469932,1776119436099,-500.0,0.00014161,2]
[420469933,1776119436109,-500.0,0.00014161,2]
[420469934,1776119436133,-500.0,0.00014161,2]
[420469935,1776119436142,-500.0,0.00014161,2]
[420469936,1776119436153,-500.0,0.00014161,2]
[420469937,1776119436177,-500.0,0.00014161,2]
[420469938,1776119436186,-500.0,0.00014161,2]
[420469939,1776119436198,-500.0,0.00014161,2]
[420469940,1776119436228,-500.0,0.00014161,2]
[420469941,1776119436238,-500.0,0.00014161,2]
[420469942,1776119436252,-500.0,0.00014161,2]
[420469943,1776119436262,-500.0,0.00014161,2]
[420469944,1776119436280,-500.0,0.00014161,2]
[420469945,1776119436289,-500.0,0.00014161,2]
[420469946,1776119436303,-500.0,0.00014161,2]
[420469947,1776119436323,-500.0,0.00014161,2]
[420469948,1776119436333,-500.0,0.00014161,2]
[420469949,1776119436352,-500.0,0.00014161,2]
[420469950,1776119436366,-81252.72958301,0.00014162,2]
[420469972,1776119439753,-192.59,0.00014052,2]
[420469973,1776119439763,-3328.59509526,0.00014062,2]
[420469978,1776119440168,-1530.77808329,0.00014062,2]
[420469979,1776119440181,-140.62682145,0.00014062,2]
[420469980,1776119440199,-192.59,0.00014152,2]
[420469981,1776119440209,-259.80040565,0.0001416,2]
[420469982,1776119440218,-334.95229285,0.00014162,2]
[420469983,1776119440231,-251.76529873,0.00014162,2]
[420469984,1776119440249,-479.436717,0.00014162,2]
[420469985,1776119440266,-11162.00382275,0.00014162,2]
[420469986,1776119440281,-616.48907602,0.00014162,2]
[420469987,1776119440361,-1741.48362425,0.00014162,2]
[420469988,1776119440376,-1165.45033526,0.00014162,2]
[420470005,1776119442586,-6184.8617904,0.00014065,2]
[420470009,1776119442596,-1348.0,0.00014147,2]
[420470012,1776119442606,-7858.8050305,0.00014162,2]
[420470016,1776119442625,-1838.8604776,0.00014162,2]
[420470018,1776119442639,-83593.53444203,0.00014162,2]
[420470021,1776119442648,-41712.05970495,0.00014162,2]
[420470023,1776119442670,-791.29751082,0.00014162,2]
[420470026,1776119442769,-38211.35917351,0.00014162,2]
[420470027,1776119443020,-553871.70103204,0.00014162,2]
[420470028,1776119443041,-1138.16994828,0.00014162,2]
[420470041,1776119443798,-167.36109132,0.00014161,2]
[420470042,1776119443809,-176.17869201,0.00014161,2]
[420470043,1776119443829,-1228.60294453,0.00014162,2]
[420470044,1776119443842,-1933.47872742,0.00014162,2]
[420470045,1776119443855,-13801.79304624,0.00014162,2]
[420470046,1776119443878,-2500.0,0.00014162,2]
[420470047,1776119443890,-713.67957342,0.00014162,2]
[420470048,1776119443902,-3360.74779895,0.00014162,2]
[420470049,1776119443921,-915.11077192,0.00014162,2]
[420470062,1776119445509,-195.84,0.00013699,2]
[420470063,1776119445525,-195.48725833,0.00014162,2]
[420470064,1776119445546,-874.04884267,0.00014162,2]
[420470065,1776119445692,-6810.99995,0.00014162,2]
[420470066,1776119445709,-57461.4431514,0.00014162,2]
[420470067,1776119445956,-8052.44653517,0.00014162,2]
[420470068,1776119445993,-59635.84227825,0.00014162,2]
[420470069,1776119446016,-74937.95040803,0.00014162,2]
[420470070,1776119446034,-657.92929977,0.00014162,2]
[420470072,1776119446124,-631195.8520443,0.00014162,2]
[420470074,1776119446136,-14934.61627435,0.00014166,2]
[420470076,1776119446145,-481.59293464,0.00014182,2]
[420470078,1776119446167,-500.0,0.00014194,2]
[420470081,1776119446179,-500.0,0.00014194,2]
[420470082,1776119446188,-500.0,0.00014194,2]
[420470084,1776119446209,-6357.467,0.00014195,2]
[420470086,1776119446223,-331.0,0.00014208,2]
[420470088,1776119446234,-385.314,0.00014229,2]
[420470091,1776119446254,-166.66,0.00014247,2]
[420470093,1776119446264,-986.6,0.00014247,2]
[420470095,1776119446284,-151.0,0.00014252,2]
[420470097,1776119446294,-500.0,0.00014254,2]
[420470099,1776119446303,-500.0,0.00014254,2]
[420470101,1776119446317,-423.46520535,0.00014254,2]
[420470103,1776119446333,-500.0,0.00014254,2]
[420470105,1776119446344,-500.0,0.00014254,2]
[420470107,1776119446357,-500.0,0.00014254,2]
[420470109,1776119446381,-500.0,0.00014254,2]
[420470111,1776119446400,-500.0,0.00014254,2]
[420470113,1776119446421,-500.0,0.00014254,2]
[420470115,1776119446443,-500.0,0.00014254,2]
[420470117,1776119446459,-500.0,0.00014254,2]
[420470119,1776119446469,-500.0,0.00014254,2]
[420470122,1776119446492,-500.0,0.00014254,2]
[420470124,1776119446520,-500.0,0.00014254,2]
[420470125,1776119446554,-500.0,0.00014254,2]
[420470127,1776119446574,-500.0,0.00014254,2]
[420470129,1776119446607,-500.0,0.00014254,2]
[420470131,1776119446621,-500.0,0.00014254,2]
[420470133,1776119446653,-500.0,0.00014254,2]
[420470135,1776119446666,-500.0,0.00014254,2]
[420470137,1776119446695,-379500.0,0.00014255,2]
[420470139,1776119446722,-4829.202781,0.00014255,2]
[420470141,1776119446733,-147268.7585693,0.00014255,2]
[420470143,1776119446752,-15563.3692351,0.00014255,2]
[420470145,1776119446764,-151.0,0.00014255,2]
[420470147,1776119446775,-151.0,0.00014259,2]
[420470149,1776119446786,-1264.0,0.00014261,2]
[420470151,1776119446805,-926.0,0.00014261,2]
[420470153,1776119446814,-1218.0,0.00014261,2]
[420470155,1776119446825,-3526.0,0.00014261,2]
[420470157,1776119446837,-623.827,0.00014261,2]
[420470159,1776119446855,-200.0,0.00014262,2]
[420470161,1776119446866,-200.0,0.00014262,2]
[420470163,1776119446879,-200.0,0.00014262,2]
[420470165,1776119446892,-155.0,0.00014262,3]
[420470167,1776119446906,-224.0,0.00014262,3]
[420470169,1776119446918,-500.0,0.00014273,2]
[420470171,1776119446931,-500.0,0.00014273,2]
[420470173,1776119446945,-500.0,0.00014273,2]
[420470175,1776119446957,-500.0,0.00014273,2]
[420470176,1776119446972,-500.0,0.00014273,2]
[420470178,1776119446987,-500.0,0.00014273,2]
[420470180,1776119447003,-500.0,0.00014273,2]
[420470182,1776119447015,-500.0,0.00014273,2]
[420470184,1776119447030,-599.44323275,0.00014273,2]
[420470186,1776119447047,-168.88635224,0.00014273,2]
[420470188,1776119447070,-500.0,0.00014273,2]
[420470190,1776119447084,-160.92559294,0.00014273,2]
[420470192,1776119447093,-500.0,0.00014273,2]
[420470194,1776119447121,-500.84686528,0.00014273,2]
[420470196,1776119447136,-162.91645585,0.00014273,2]
[420470198,1776119447149,-500.0,0.00014273,2]
[420470200,1776119447169,-500.0,0.00014273,2]
[420470202,1776119447178,-163.78579344,0.00014273,2]
[420470204,1776119447189,-500.0,0.00014273,2]
[420470206,1776119447205,-500.0,0.00014273,2]
[420470209,1776119447220,-500.0,0.00014273,2]
[420470210,1776119447229,-386.17373309,0.00014273,2]
[420470213,1776119447240,-500.24684786,0.00014273,2]
[420470214,1776119447251,-569.20510167,0.00014273,2]
[420470216,1776119447263,-500.0,0.00014273,2]
[420470218,1776119447280,-500.0,0.00014273,2]
[420470220,1776119447289,-500.0,0.00014273,2]
[420470222,1776119447299,-607.4248832,0.00014273,2]
[420470224,1776119447311,-500.0,0.00014273,2]
[420470226,1776119447325,-500.0,0.00014273,2]
[420470228,1776119447335,-313.0876764,0.00014273,2]
[420470230,1776119447345,-202.85792649,0.00014273,2]
[420470232,1776119447366,-561.75060805,0.00014273,2]
[420470234,1776119447379,-211.21566375,0.00014273,2]
[420470236,1776119447390,-500.0,0.00014273,2]
[420470238,1776119447406,-500.0,0.00014273,2]
[420470240,1776119447415,-500.0,0.00014273,2]
[420470242,1776119447427,-516.31380549,0.00014273,2]
[420470244,1776119447439,-1104.0,0.00014277,2]
[420470246,1776119447450,-6184.86179039,0.00014292,2]
[420470248,1776119447459,-14934.61627435,0.00014313,2]
[420470250,1776119447469,-1104.0,0.00014317,2]
[420470252,1776119447479,-1104.0,0.00014317,2]
[420470254,1776119447494,-153.4610031,0.00014349,2]
[420470256,1776119447506,-200.0,0.0001435,2]
[420470258,1776119447525,-1592.87721993,0.0001435,2]
[420470260,1776119447535,-233.51889341,0.0001435,2]
[420470262,1776119447543,-257.81870267,0.0001435,2]
[420470264,1776119447564,-194.72792766,0.0001435,2]
[420470266,1776119447575,-150.0,0.00014362,2]
[420470268,1776119447586,-150.0,0.00014362,2]
[420470270,1776119447597,-203.535,0.00014362,2]
[420470272,1776119447611,-248.0,0.00014362,2]
[420470274,1776119447621,-150.0,0.00014362,2]
[420470275,1776119447637,-150.0,0.00014362,2]
[420470277,1776119447649,-150.0,0.00014362,2]
[420470279,1776119447664,-150.0,0.00014362,2]
[420470281,1776119447673,-150.0,0.00014362,2]
[420470282,1776119447686,-150.0,0.00014362,2]
[420470283,1776119447697,-150.0,0.00014362,2]
[420470284,1776119447711,-150.0,0.00014362,2]
[420470285,1776119447725,-150.0,0.00014362,2]
[420470286,1776119447737,-1104.0,0.00014372,2]
[420470287,1776119447753,-166.66,0.00014384,2]
[420470288,1776119447764,-200.0,0.00014405,2]
[420470289,1776119447774,-200.0,0.00014405,2]
[420470290,1776119447788,-200.0,0.00014405,2]
[420470291,1776119447812,-14934.61627435,0.00014461,2]
[420470292,1776119447825,-6184.86179039,0.00014519,2]
[420470293,1776119447836,-973.03,0.00014521,2]
[420470294,1776119447851,-207.959601,0.00014535,2]
[420470295,1776119447870,-2061.785765,0.00014535,2]
[420470296,1776119447887,-1149.432284,0.00014535,2]
[420470297,1776119447918,-200.0,0.00014549,2]
[420470298,1776119447940,-200.0,0.00014549,2]
[420470299,1776119447969,-1104.0,0.00014554,2]
[420470300,1776119447979,-500.0,0.00014567,2]
[420470301,1776119448007,-1100.0,0.000146,5]
[420470302,1776119448021,-14934.61627435,0.00014609,2]
[420470303,1776119448044,-153.4610031,0.00014633,2]
[420470304,1776119448055,-654.00735506,0.00014633,2]
[420470305,1776119448070,-3292.0,0.00014638,2]
[420470306,1776119448090,-1104.0,0.00014657,2]
[420470307,1776119448112,-188.01764048,0.00014659,2]
[420470308,1776119448122,-249.93747356,0.00014672,2]
[420470309,1776119448134,-258.50670419,0.00014673,2]
[420470310,1776119448155,-155.39,0.00014681,2]
[420470311,1776119448166,-200.0,0.00014694,2]
[420470312,1776119448178,-200.0,0.00014694,2]
[420470313,1776119448200,-240.1966,0.000147,2]
[420470314,1776119448212,-200.0,0.000147,5]
[420470315,1776119448222,-1104.0,0.0001471,2]
[420470316,1776119448237,-962.57351444,0.0001471,2]
[420470317,1776119448251,-390.21152364,0.00014721,2]
[420470318,1776119448276,-6184.86179039,0.00014746,2]
[420470319,1776119448287,-1104.0,0.00014753,2]
[420470320,1776119448316,-14934.61627435,0.00014757,2]
[420470321,1776119448330,-507.0,0.00014779,3]
[420470322,1776119448340,-168.10059264,0.00014792,2]
[420470323,1776119448351,-184.72031005,0.00014792,2]
[420470324,1776119448360,-200.0,0.000148,5]
[420470325,1776119448379,-260.52083552,0.00014821,2]
[420470326,1776119448388,-465.07504,0.00014821,2]
[420470327,1776119448405,-1000.0,0.00014821,2]
[420470328,1776119448437,-1000.0,0.00014821,2]
[420470329,1776119448446,-1000.0,0.00014821,2]
[420470330,1776119448471,-500.0,0.00014821,2]
[420470331,1776119448482,-187.66612729,0.00014821,2]
[420470332,1776119449622,-312.92490801,0.00014821,2]
[420470333,1776119449651,-560.82964069,0.00014821,2]
[420470334,1776119449661,-64.13143184,0.00014821,2]
[420470335,1776119456584,476.0,0.000103,5]
[420470337,1776119467139,228.0,0.00010699,2]
[420470338,1776119474853,150.0,0.00015259,30]
[420470339,1776119475223,150.0,0.0001619,30]
[420470341,1776119506521,500.0,0.00010659,2]
[420470342,1776119525315,216.0,0.00010699,2]
[420470343,1776119565047,150.0,0.00010857,30]
[420470344,1776119565311,150.0,0.0001152,30]
[420470345,1776119566131,150.0,0.00012182,30]
[420470346,1776119566530,150.0,0.00012845,30]
[420470347,1776119566862,150.0,0.00013508,30]
[420470348,1776119644730,-152.0,0.00010761,2]
[420470349,1776119664622,500.0,0.00010659,2]
[420470350,1776119706530,156.0,0.00010761,2]
[420470351,1776119708078,206.0,0.00010761,2]
[420470353,1776119765864,195.0,0.00010761,2]
[420470354,1776119805738,500.0,0.00010659,2]
[420470355,1776119830406,186.0,0.00010761,2]
[420470356,1776119842170,60000.0,0.000165,30]
[420470357,1776119968525,500.0,0.00010661,2]
[420470358,1776119988182,-500.0,0.00011515,2]
[420470359,1776120018540,-211.18,0.00011478,2]
[420470360,1776120033503,-156.0,0.00011515,3]
[420470361,1776120035779,310.0,0.00011515,2]
[420470362,1776120049654,-156.0,0.00011515,2]
[420470363,1776120066104,168.0,0.00011515,2]
[420470364,1776120097415,-152.0,0.00010743,2]
[420470365,1776120114111,-6191.17445735,0.00011315,2]
[420470366,1776120114146,-10000.01,0.00011315,2]
[420470367,1776120114216,-10000.01,0.00011315,2]
[420470368,1776120114330,-10000.01,0.00011315,2]